[Event "Early-Titled-Tuesday-Blitz-March-12-2024"]
[Site "Chess.com"]
[Date "2024.03.12"]
[Round "3"]
[White "FischerKasparow"]
[Black "FlemingA"]
[Result "0-1"]
[WhiteElo "2083"]
[BlackElo "2424"]
[TimeControl "180+1"]
[EndTime "8:26:46 PDT"]
[Termination "FlemingA won by resignation"]

1. Nf3 {[%clk 0:03:00.9]} 1... g6 {[%clk 0:02:55.1]} 2. d4 {[%clk 0:02:59.8]}
2... Bg7 {[%clk 0:02:53.9]} 3. c4 {[%clk 0:03:00.7]} 3... c5 {[%clk 0:02:53.2]}
4. d5 {[%clk 0:03:00.2]} 4... b5 {[%clk 0:02:50.9]} 5. Nbd2 {[%clk 0:02:59.5]}
5... b4 {[%clk 0:02:46.4]} 6. e4 {[%clk 0:02:58.4]} 6... d6 {[%clk 0:02:47]} 7.
Rb1 {[%clk 0:02:58.1]} 7... Nf6 {[%clk 0:02:46.1]} 8. b3 {[%clk 0:02:57.9]} 8...
O-O {[%clk 0:02:45.1]} 9. Bb2 {[%clk 0:02:58.3]} 9... e6 {[%clk 0:02:45.7]} 10.
dxe6 {[%clk 0:02:55.8]} 10... Bxe6 {[%clk 0:02:44.9]} 11. Be2 {[%clk 0:02:56.1]}
11... Re8 {[%clk 0:02:42.7]} 12. O-O {[%clk 0:02:55.4]} 12... Nc6 {[%clk
0:02:42.2]} 13. Qc2 {[%clk 0:02:55.6]} 13... Bg4 {[%clk 0:02:40.7]} 14. Rfe1
{[%clk 0:02:51]} 14... Bxf3 {[%clk 0:02:32.7]} 15. Bxf3 {[%clk 0:02:51.2]} 15...
Qc7 {[%clk 0:02:16.9]} 16. g3 {[%clk 0:02:49.2]} 16... a5 {[%clk 0:02:12.3]} 17.
a4 {[%clk 0:02:46.5]} 17... bxa3 {[%clk 0:02:08.6]} 18. Bxa3 {[%clk 0:02:46.9]}
18... Nd4 {[%clk 0:02:07.6]} 19. Qd1 {[%clk 0:02:44.5]} 19... Nd7 {[%clk
0:01:54.8]} 20. Bg2 {[%clk 0:02:44.1]} 20... Ne5 {[%clk 0:01:53.7]} 21. Nf1
{[%clk 0:02:39.1]} 21... Rab8 {[%clk 0:01:46]} 22. f4 {[%clk 0:02:38]} 22...
Nec6 {[%clk 0:01:43.1]} 23. Bb2 {[%clk 0:02:37.4]} 23... Rxb3 {[%clk 0:01:32.4]}
24. Ne3 {[%clk 0:02:37.4]} 24... Qb7 {[%clk 0:01:21.2]} 25. Bxd4 {[%clk
0:02:34.8]} 25... Rxb1 {[%clk 0:00:58.8]} 26. Qxb1 {[%clk 0:02:35.7]} 26... Qxb1
{[%clk 0:00:58.7]} 27. Rxb1 {[%clk 0:02:36.6]} 27... Bxd4 {[%clk 0:00:59.4]} 28.
Kf2 {[%clk 0:02:35.7]} 28... f5 {[%clk 0:00:48.9]} 29. Ke2 {[%clk 0:02:34.6]}
29... Nb4 {[%clk 0:00:44.5]} 30. Rb3 {[%clk 0:02:30]} 30... a4 {[%clk
0:00:42.7]} 31. Ra3 {[%clk 0:02:30.2]} 31... Ra8 {[%clk 0:00:24.9]} 32. Nd5
{[%clk 0:02:26.9]} 32... Nxd5 {[%clk 0:00:19]} 33. cxd5 {[%clk 0:02:26.2]} 33...
Bb2 {[%clk 0:00:13.7]} 34. Ra2 {[%clk 0:02:25.5]} 34... a3 {[%clk 0:00:14.3]}
35. e5 {[%clk 0:02:26.3]} 35... Kf7 {[%clk 0:00:08]} 36. g4 {[%clk 0:02:25.5]}
36... Re8 {[%clk 0:00:07.2]} 37. e6+ {[%clk 0:02:25]} 37... Kf6 {[%clk
0:00:07.4]} 38. g5+ {[%clk 0:02:25.6]} 38... Kg7 {[%clk 0:00:07.9]} 39. Kd3
{[%clk 0:02:25.3]} 39... h6 {[%clk 0:00:08.2]} 40. h4 {[%clk 0:02:24.7]} 40...
hxg5 {[%clk 0:00:08.7]} 41. hxg5 {[%clk 0:02:24.3]} 41... Rh8 {[%clk 0:00:09.5]}
42. Bf1 {[%clk 0:02:24.3]} 42... Rh1 {[%clk 0:00:08]} 43. Be2 {[%clk 0:02:23.7]}
43... Rh3+ {[%clk 0:00:07.4]} 44. Kc4 {[%clk 0:02:23.5]} 44... Re3 {[%clk
0:00:05.6]} 45. Bd1 {[%clk 0:02:23.5]} 45... Re4+ {[%clk 0:00:05.5]} 46. Kb5
{[%clk 0:02:23.3]} 46... Kf8 {[%clk 0:00:04.9]} 47. Kc6 {[%clk 0:02:24.2]} 47...
Ke7 {[%clk 0:00:05.3]} 48. Bc2 {[%clk 0:02:23.1]} 48... Rxf4 {[%clk 0:00:05.2]}
49. Kc7 {[%clk 0:02:23.3]} 49... Rg4 {[%clk 0:00:03.7]} 50. Bd3 {[%clk
0:02:23.2]} 50... Rxg5 {[%clk 0:00:03.7]} 51. Kc6 {[%clk 0:02:22.8]} 51... Rg3
{[%clk 0:00:03.8]} 52. Kb5 {[%clk 0:02:23.7]} 52... Rxd3 {[%clk 0:00:04]} 53.
Kc4 {[%clk 0:02:24]} 53... Rd4+ {[%clk 0:00:04.5]} 54. Kb3 {[%clk 0:02:24.9]}
54... Rxd5 {[%clk 0:00:05]} 55. Kc2 {[%clk 0:02:25.7]} 55... Kxe6 {[%clk
0:00:04.7]} 56. Kb1 {[%clk 0:02:26.6]} 56... Ke5 {[%clk 0:00:05.2]} 57. Kc2
{[%clk 0:02:27.5]} 57... f4 {[%clk 0:00:05.4]} 58. Kb3 {[%clk 0:02:28.4]} 58...
f3 {[%clk 0:00:06]} 59. Rxb2 {[%clk 0:02:28.8]} 59... axb2 {[%clk 0:00:05.9]}
60. Kxb2 {[%clk 0:02:29.5]} 60... f2 {[%clk 0:00:05.6]} 0-1

[Event "Early-Titled-Tuesday-Blitz-March-12-2024"]
[Site "Chess.com"]
[Date "2024.03.12"]
[Round "3"]
[White "Gabcur"]
[Black "RobertoJBM"]
[Result "0-1"]
[WhiteElo "2354"]
[BlackElo "2832"]
[TimeControl "180+1"]
[EndTime "8:26:48 PDT"]
[Termination "RobertoJBM won by resignation"]

1. e4 {[%clk 0:03:00.9]} 1... c6 {[%clk 0:02:58.1]} 2. d4 {[%clk 0:02:59.4]}
2... d5 {[%clk 0:02:57.4]} 3. exd5 {[%clk 0:02:59.3]} 3... cxd5 {[%clk
0:02:56.5]} 4. c4 {[%clk 0:02:58.7]} 4... Nf6 {[%clk 0:02:55.9]} 5. Nc3 {[%clk
0:02:58]} 5... e6 {[%clk 0:02:55.6]} 6. cxd5 {[%clk 0:02:56.3]} 6... Nxd5 {[%clk
0:02:55.1]} 7. Nf3 {[%clk 0:02:57]} 7... Be7 {[%clk 0:02:54.3]} 8. Bd3 {[%clk
0:02:56.2]} 8... Nc6 {[%clk 0:02:44.5]} 9. O-O {[%clk 0:02:55.6]} 9... O-O
{[%clk 0:02:43.9]} 10. Re1 {[%clk 0:02:55.6]} 10... Nf6 {[%clk 0:02:42.7]} 11.
a3 {[%clk 0:02:54.4]} 11... b6 {[%clk 0:02:39.6]} 12. Bc2 {[%clk 0:02:48.5]}
12... Ba6 {[%clk 0:02:38.2]} 13. Bg5 {[%clk 0:02:48.3]} 13... Rc8 {[%clk
0:02:36.9]} 14. Qd2 {[%clk 0:02:48]} 14... Nd5 {[%clk 0:02:36.3]} 15. Ne4 {[%clk
0:02:42.9]} 15... Bxg5 {[%clk 0:02:32.8]} 16. Nexg5 {[%clk 0:02:40.6]} 16... h6
{[%clk 0:02:30.4]} 17. Ne4 {[%clk 0:02:40.3]} 17... Nf6 {[%clk 0:02:27.1]} 18.
Ng3 {[%clk 0:02:25]} 18... Qd6 {[%clk 0:02:15]} 19. Rad1 {[%clk 0:02:24.5]}
19... Rfd8 {[%clk 0:02:14.3]} 20. Bb1 {[%clk 0:02:22.2]} 20... Na5 {[%clk
0:02:10.9]} 21. Ne5 {[%clk 0:02:18.2]} 21... Nc4 {[%clk 0:02:07.5]} 22. Qe2
{[%clk 0:01:52.8]} 22... Nxe5 {[%clk 0:01:54.4]} 23. dxe5 {[%clk 0:01:14.5]}
23... Qxd1 {[%clk 0:01:53.9]} 24. Qxd1 {[%clk 0:01:12.7]} 24... Rxd1 {[%clk
0:01:51.6]} 25. Rxd1 {[%clk 0:01:12.4]} 25... Ng4 {[%clk 0:01:25.6]} 26. f4
{[%clk 0:00:53.4]} 26... Ne3 {[%clk 0:01:20.2]} 27. Re1 {[%clk 0:00:25.8]} 27...
Nd5 {[%clk 0:00:59.8]} 28. Rf1 {[%clk 0:00:18.9]} 28... Bxf1 {[%clk 0:00:58.3]}
0-1

[Event "Early-Titled-Tuesday-Blitz-March-12-2024"]
[Site "Chess.com"]
[Date "2024.03.12"]
[Round "3"]
[White "Iskusnyh"]
[Black "Zheenbekov86"]
[Result "1-0"]
[WhiteElo "2678"]
[BlackElo "2437"]
[TimeControl "180+1"]
[EndTime "8:26:50 PDT"]
[Termination "Iskusnyh won on time"]

1. d4 {[%clk 0:03:00.8]} 1... Nf6 {[%clk 0:02:58.8]} 2. c4 {[%clk 0:02:59]} 2...
g6 {[%clk 0:02:58.7]} 3. g3 {[%clk 0:02:56]} 3... Bg7 {[%clk 0:02:58]} 4. Bg2
{[%clk 0:02:55.9]} 4... O-O {[%clk 0:02:58.4]} 5. Nc3 {[%clk 0:02:56.4]} 5... d6
{[%clk 0:02:58.6]} 6. Nf3 {[%clk 0:02:56.2]} 6... Nbd7 {[%clk 0:02:57.4]} 7. O-O
{[%clk 0:02:55]} 7... e5 {[%clk 0:02:57.1]} 8. e4 {[%clk 0:02:54.2]} 8... exd4
{[%clk 0:02:45.8]} 9. Nxd4 {[%clk 0:02:53.9]} 9... Re8 {[%clk 0:02:44.2]} 10. h3
{[%clk 0:02:46.8]} 10... Nc5 {[%clk 0:02:44.1]} 11. Re1 {[%clk 0:02:45.8]} 11...
a5 {[%clk 0:02:42.6]} 12. Ndb5 {[%clk 0:02:44.5]} 12... Bd7 {[%clk 0:02:29.1]}
13. Bf4 {[%clk 0:02:35.1]} 13... Bxb5 {[%clk 0:02:09.4]} 14. cxb5 {[%clk
0:02:26.1]} 14... Nfd7 {[%clk 0:01:51]} 15. Qc2 {[%clk 0:02:21.5]} 15... Ne5
{[%clk 0:01:46.9]} 16. Rad1 {[%clk 0:02:20.5]} 16... a4 {[%clk 0:01:16.6]} 17.
Kh2 {[%clk 0:02:08.1]} 17... h5 {[%clk 0:01:11.3]} 18. Be3 {[%clk 0:02:03.4]}
18... Ned7 {[%clk 0:00:44.3]} 19. f4 {[%clk 0:01:48.1]} 19... Bxc3 {[%clk
0:00:29.7]} 20. bxc3 {[%clk 0:01:40.5]} 20... Qe7 {[%clk 0:00:29.4]} 21. Bd4
{[%clk 0:01:36.7]} 21... Ra5 {[%clk 0:00:20.5]} 22. c4 {[%clk 0:01:34.4]} 22...
b6 {[%clk 0:00:15.2]} 23. Ba1 {[%clk 0:01:27.5]} 23... f6 {[%clk 0:00:14.1]} 24.
e5 {[%clk 0:01:24.5]} 24... fxe5 {[%clk 0:00:12.1]} 25. Qxg6+ {[%clk 0:01:23.2]}
25... Kh8 {[%clk 0:00:01.7]} 26. Qxh5+ {[%clk 0:01:22.3]} 1-0

[Event "Early-Titled-Tuesday-Blitz-March-12-2024"]
[Site "Chess.com"]
[Date "2024.03.12"]
[Round "3"]
[White "toninhojit"]
[Black "MatthewG-p4p"]
[Result "0-1"]
[WhiteElo "2535"]
[BlackElo "2870"]
[TimeControl "180+1"]
[EndTime "8:26:55 PDT"]
[Termination "MatthewG-p4p won by resignation"]

1. d4 {[%clk 0:03:00.9]} 1... Nf6 {[%clk 0:03:00]} 2. c4 {[%clk 0:02:56.3]} 2...
c5 {[%clk 0:03:00.7]} 3. d5 {[%clk 0:02:56.1]} 3... e6 {[%clk 0:03:01.2]} 4. Nc3
{[%clk 0:02:55.6]} 4... exd5 {[%clk 0:03:02]} 5. cxd5 {[%clk 0:02:56.3]} 5... d6
{[%clk 0:03:02.8]} 6. Nf3 {[%clk 0:02:55.8]} 6... g6 {[%clk 0:03:03.7]} 7. Bf4
{[%clk 0:02:56]} 7... Bg7 {[%clk 0:03:04.1]} 8. h3 {[%clk 0:02:56.4]} 8... O-O
{[%clk 0:03:04.5]} 9. e3 {[%clk 0:02:57]} 9... Na6 {[%clk 0:03:05.3]} 10. Be2
{[%clk 0:02:55.7]} 10... Nc7 {[%clk 0:03:05.4]} 11. O-O {[%clk 0:02:56.2]} 11...
Re8 {[%clk 0:03:05.4]} 12. Re1 {[%clk 0:02:48]} 12... a6 {[%clk 0:03:03.6]} 13.
a4 {[%clk 0:02:46]} 13... b6 {[%clk 0:03:03.9]} 14. Bf1 {[%clk 0:02:35.7]} 14...
Ne4 {[%clk 0:02:56.6]} 15. Nxe4 {[%clk 0:02:34]} 15... Rxe4 {[%clk 0:02:57.5]}
16. Qc2 {[%clk 0:02:34.4]} 16... Rb4 {[%clk 0:02:46.8]} 17. Rab1 {[%clk
0:02:16.5]} 17... Nxd5 {[%clk 0:02:42]} 18. Bh2 {[%clk 0:02:16.6]} 18... Nf6
{[%clk 0:02:39.1]} 19. Red1 {[%clk 0:02:09]} 19... Bf5 {[%clk 0:02:38.4]} 20.
Bd3 {[%clk 0:02:06.9]} 20... Bxd3 {[%clk 0:02:36.4]} 21. Rxd3 {[%clk 0:02:07.8]}
21... d5 {[%clk 0:02:36.7]} 22. Rbd1 {[%clk 0:02:08.4]} 22... Qd7 {[%clk
0:02:35.8]} 23. b3 {[%clk 0:02:03.7]} 23... Re8 {[%clk 0:02:36.1]} 24. Be5
{[%clk 0:01:51.4]} 24... Qf5 {[%clk 0:02:14.1]} 25. Bc3 {[%clk 0:01:41.2]} 25...
Rbe4 {[%clk 0:01:30]} 26. Bxf6 {[%clk 0:01:33.7]} 26... Qxf6 {[%clk 0:01:30.9]}
27. Rxd5 {[%clk 0:01:33.9]} 27... R4e6 {[%clk 0:01:31.6]} 28. Qc4 {[%clk
0:01:30.6]} 28... Qc3 {[%clk 0:01:19.1]} 29. Qxc3 {[%clk 0:01:26.1]} 29... Bxc3
{[%clk 0:01:20]} 30. Rd6 {[%clk 0:01:26.8]} 30... b5 {[%clk 0:01:08.6]} 31. Kf1
{[%clk 0:01:22.2]} 31... c4 {[%clk 0:01:00.4]} 32. Rxe6 {[%clk 0:01:15.6]} 32...
Rxe6 {[%clk 0:00:59.3]} 33. axb5 {[%clk 0:01:16.3]} 33... cxb3 {[%clk
0:00:51.5]} 34. Rb1 {[%clk 0:01:07.1]} 34... b2 {[%clk 0:00:45.3]} 35. Nd4
{[%clk 0:01:02.6]} 35... Rb6 {[%clk 0:00:44.5]} 36. bxa6 {[%clk 0:00:54.7]}
36... Rxa6 {[%clk 0:00:45.4]} 37. Ke2 {[%clk 0:00:55]} 37... Ra1 {[%clk
0:00:43.2]} 0-1

[Event "Early-Titled-Tuesday-Blitz-March-12-2024"]
[Site "Chess.com"]
[Date "2024.03.12"]
[Round "3"]
[White "ActorXu"]
[Black "Superfelix"]
[Result "1-0"]
[WhiteElo "2870"]
[BlackElo "2609"]
[TimeControl "180+1"]
[EndTime "8:26:57 PDT"]
[Termination "ActorXu won by resignation"]

1. e4 {[%clk 0:03:00.4]} 1... c6 {[%clk 0:02:59.9]} 2. d4 {[%clk 0:03:00]} 2...
g6 {[%clk 0:03:00.5]} 3. f4 {[%clk 0:02:50.8]} 3... d5 {[%clk 0:03:00.6]} 4. e5
{[%clk 0:02:50.9]} 4... h5 {[%clk 0:03:00.9]} 5. Nf3 {[%clk 0:02:49.5]} 5... Nh6
{[%clk 0:03:01.4]} 6. Bd3 {[%clk 0:02:48.9]} 6... Bf5 {[%clk 0:03:01.4]} 7. Be3
{[%clk 0:02:47.3]} 7... Bxd3 {[%clk 0:02:58.7]} 8. Qxd3 {[%clk 0:02:47.9]} 8...
e6 {[%clk 0:02:59.6]} 9. Nbd2 {[%clk 0:02:43.4]} 9... Qb6 {[%clk 0:02:59.6]} 10.
b3 {[%clk 0:02:23.5]} 10... Nf5 {[%clk 0:02:59.3]} 11. Bf2 {[%clk 0:02:23.2]}
11... c5 {[%clk 0:02:59.7]} 12. c4 {[%clk 0:02:11]} 12... Nc6 {[%clk 0:02:59.8]}
13. cxd5 {[%clk 0:02:07.9]} 13... exd5 {[%clk 0:03:00.7]} 14. dxc5 {[%clk
0:01:51.6]} 14... Bxc5 {[%clk 0:03:00]} 15. O-O {[%clk 0:01:48.8]} 15... Nb4
{[%clk 0:02:57.7]} 16. Qe2 {[%clk 0:01:45.1]} 16... Bxf2+ {[%clk 0:02:49.7]} 17.
Rxf2 {[%clk 0:01:31.9]} 17... O-O {[%clk 0:02:48.8]} 18. a3 {[%clk 0:01:11.4]}
18... Nc2 {[%clk 0:02:48.4]} 19. Rc1 {[%clk 0:01:10.2]} 19... Nxa3 {[%clk
0:02:46.3]} 20. h3 {[%clk 0:00:50.8]} 20... h4 {[%clk 0:02:45.7]} 21. Kh2 {[%clk
0:00:43.8]} 21... Rac8 {[%clk 0:02:43.2]} 22. Rd1 {[%clk 0:00:43.5]} 22... Nc2
{[%clk 0:02:40.5]} 23. Nf1 {[%clk 0:00:41.3]} 23... d4 {[%clk 0:02:32.5]} 24.
Rd3 {[%clk 0:00:36.9]} 24... Nce3 {[%clk 0:02:31.7]} 25. g4 {[%clk 0:00:33.7]}
25... hxg3+ {[%clk 0:02:23.9]} 26. Nxg3 {[%clk 0:00:33.7]} 26... Rc2 {[%clk
0:02:20.4]} 27. Qe1 {[%clk 0:00:30.3]} 27... Nxg3 {[%clk 0:02:12.8]} 28. Rxc2
{[%clk 0:00:27.7]} 28... Ngf1+ {[%clk 0:02:06.1]} 29. Kg1 {[%clk 0:00:25.5]}
29... Nxc2 {[%clk 0:02:05.6]} 30. Qh4 {[%clk 0:00:23]} 30... Kg7 {[%clk
0:01:50.3]} 31. f5 {[%clk 0:00:20]} 31... Rh8 {[%clk 0:01:46.7]} 32. Qg4 {[%clk
0:00:16.5]} 32... Qd8 {[%clk 0:01:27.8]} 33. Nxd4 {[%clk 0:00:14]} 33... Nfe3
{[%clk 0:01:23.8]} 34. Ne6+ {[%clk 0:00:09.6]} 34... fxe6 {[%clk 0:01:22.7]} 35.
Qxg6+ {[%clk 0:00:08.8]} 1-0

[Event "Early-Titled-Tuesday-Blitz-March-12-2024"]
[Site "Chess.com"]
[Date "2024.03.12"]
[Round "3"]
[White "manitodeplomo"]
[Black "venturov"]
[Result "1-0"]
[WhiteElo "2715"]
[BlackElo "2483"]
[TimeControl "180+1"]
[EndTime "8:26:58 PDT"]
[Termination "manitodeplomo won by resignation"]

1. d4 {[%clk 0:03:00.9]} 1... Nf6 {[%clk 0:02:52.3]} 2. c4 {[%clk 0:03:00.3]}
2... d6 {[%clk 0:02:51.2]} 3. Nf3 {[%clk 0:02:59.5]} 3... g6 {[%clk 0:02:50.8]}
4. Nc3 {[%clk 0:02:59.4]} 4... Nbd7 {[%clk 0:02:50.6]} 5. e4 {[%clk 0:02:59.4]}
5... e5 {[%clk 0:02:50.9]} 6. Be2 {[%clk 0:02:58.6]} 6... Bg7 {[%clk 0:02:50.9]}
7. O-O {[%clk 0:02:58.7]} 7... O-O {[%clk 0:02:50.8]} 8. Be3 {[%clk 0:02:54.2]}
8... Re8 {[%clk 0:02:50]} 9. d5 {[%clk 0:02:53.5]} 9... Nh5 {[%clk 0:02:50.2]}
10. g3 {[%clk 0:02:46.1]} 10... Bf8 {[%clk 0:02:49.5]} 11. Nd2 {[%clk
0:02:44.6]} 11... Ng7 {[%clk 0:02:49.8]} 12. b4 {[%clk 0:02:43.4]} 12... Be7
{[%clk 0:02:48.4]} 13. c5 {[%clk 0:02:29.8]} 13... f5 {[%clk 0:02:47.4]} 14. Nc4
{[%clk 0:02:24.1]} 14... Nf6 {[%clk 0:02:42.7]} 15. f3 {[%clk 0:02:18.1]} 15...
fxe4 {[%clk 0:02:20.9]} 16. fxe4 {[%clk 0:02:17.8]} 16... Bh3 {[%clk 0:02:20.8]}
17. Rf2 {[%clk 0:02:02.8]} 17... b6 {[%clk 0:02:12.7]} 18. a4 {[%clk 0:01:59.5]}
18... Qc8 {[%clk 0:01:47.1]} 19. Rc1 {[%clk 0:01:51.9]} 19... Ng4 {[%clk
0:01:45.1]} 20. Bxg4 {[%clk 0:01:51.3]} 20... Bxg4 {[%clk 0:01:43.1]} 21. Qd3
{[%clk 0:01:51.1]} 21... Qd8 {[%clk 0:01:42.5]} 22. a5 {[%clk 0:01:31.9]} 22...
bxc5 {[%clk 0:01:37.2]} 23. bxc5 {[%clk 0:01:31.6]} 23... Bg5 {[%clk 0:01:33.1]}
24. cxd6 {[%clk 0:01:23.7]} 24... cxd6 {[%clk 0:01:31.1]} 25. Nb5 {[%clk
0:01:22.5]} 25... Be7 {[%clk 0:01:12.6]} 26. Nxa7 {[%clk 0:01:17.4]} 26... Rf8
{[%clk 0:01:04.1]} 27. Nc6 {[%clk 0:01:16.5]} 27... Qd7 {[%clk 0:01:03.8]} 28.
Nb6 {[%clk 0:01:15.5]} 28... Qe8 {[%clk 0:00:56.5]} 29. Nxa8 {[%clk 0:01:11.9]}
29... Rxf2 {[%clk 0:00:49.3]} 30. Nc7 {[%clk 0:01:04.9]} 30... Rg2+ {[%clk
0:00:20.6]} 31. Kxg2 {[%clk 0:01:03.4]} 31... Bh3+ {[%clk 0:00:21.3]} 32. Kxh3
{[%clk 0:01:01.3]} 32... Qd7+ {[%clk 0:00:21.3]} 33. Kg2 {[%clk 0:01:01.2]}
33... Qxc7 {[%clk 0:00:21.5]} 34. Nxe7+ {[%clk 0:00:58.6]} 34... Qxe7 {[%clk
0:00:22.4]} 35. a6 {[%clk 0:00:58.6]} 1-0

[Event "Early-Titled-Tuesday-Blitz-March-12-2024"]
[Site "Chess.com"]
[Date "2024.03.12"]
[Round "3"]
[White "BestStelker"]
[Black "sorch29"]
[Result "1-0"]
[WhiteElo "2714"]
[BlackElo "2483"]
[TimeControl "180+1"]
[EndTime "8:27:05 PDT"]
[Termination "BestStelker won on time"]

1. Nf3 {[%clk 0:03:00.9]} 1... Nf6 {[%clk 0:02:56.9]} 2. c4 {[%clk 0:03:01.6]}
2... g6 {[%clk 0:02:55.1]} 3. Nc3 {[%clk 0:03:02.1]} 3... Bg7 {[%clk 0:02:55.8]}
4. e4 {[%clk 0:03:02.9]} 4... d6 {[%clk 0:02:56.5]} 5. d4 {[%clk 0:03:03.6]}
5... O-O {[%clk 0:02:56.9]} 6. Be2 {[%clk 0:03:04.3]} 6... e5 {[%clk 0:02:57]}
7. O-O {[%clk 0:03:05]} 7... Bg4 {[%clk 0:02:57.5]} 8. d5 {[%clk 0:02:54.1]}
8... a5 {[%clk 0:02:53.8]} 9. Ne1 {[%clk 0:02:53.2]} 9... Bxe2 {[%clk
0:02:48.5]} 10. Qxe2 {[%clk 0:02:54.1]} 10... Na6 {[%clk 0:02:48.4]} 11. Nd3
{[%clk 0:02:54.5]} 11... b6 {[%clk 0:02:48.5]} 12. b3 {[%clk 0:02:49.7]} 12...
Nc5 {[%clk 0:02:48.4]} 13. Nxc5 {[%clk 0:02:37.4]} 13... bxc5 {[%clk 0:02:40.4]}
14. Bd2 {[%clk 0:02:38.3]} 14... Nd7 {[%clk 0:02:35.8]} 15. a4 {[%clk
0:02:34.3]} 15... f5 {[%clk 0:02:35.8]} 16. f3 {[%clk 0:02:32.1]} 16... Nf6
{[%clk 0:02:26.7]} 17. Nb5 {[%clk 0:02:25.2]} 17... Nh5 {[%clk 0:01:58.8]} 18.
g3 {[%clk 0:02:18.7]} 18... Qd7 {[%clk 0:01:32.7]} 19. Qg2 {[%clk 0:02:04.5]}
19... Nf6 {[%clk 0:01:13.1]} 20. h3 {[%clk 0:01:58.3]} 20... h5 {[%clk
0:00:53.8]} 21. Rae1 {[%clk 0:01:51.6]} 21... c6 {[%clk 0:00:43.9]} 22. dxc6
{[%clk 0:01:51.1]} 22... Qxc6 {[%clk 0:00:44.8]} 23. Qe2 {[%clk 0:01:49.8]}
23... Qd7 {[%clk 0:00:30.4]} 24. Kg2 {[%clk 0:01:45.4]} 24... Rfd8 {[%clk
0:00:17.2]} 25. Qd3 {[%clk 0:01:45.1]} 25... Ne8 {[%clk 0:00:07.1]} 26. Rd1
{[%clk 0:01:36]} 26... Nc7 {[%clk 0:00:06]} 27. Bg5 {[%clk 0:01:32.3]} 27...
Nxb5 {[%clk 0:00:05]} 28. cxb5 {[%clk 0:01:29.4]} 28... Rdc8 {[%clk 0:00:02.5]}
29. Qxd6 {[%clk 0:01:28]} 29... Qxd6 {[%clk 0:00:03.1]} 30. Rxd6 {[%clk
0:01:28.9]} 30... c4 {[%clk 0:00:03.5]} 31. b6 {[%clk 0:01:21.2]} 31... Rab8
{[%clk 0:00:01.6]} 32. bxc4 {[%clk 0:01:11.8]} 32... Rxc4 {[%clk 0:00:01.3]} 33.
Rd8+ {[%clk 0:01:10]} 33... Kh7 {[%clk 0:00:01.3]} 34. Rxb8 {[%clk 0:01:09.9]}
1-0

[Event "Early-Titled-Tuesday-Blitz-March-12-2024"]
[Site "Chess.com"]
[Date "2024.03.12"]
[Round "3"]
[White "PabloZarnicki"]
[Black "Seochesspie"]
[Result "0-1"]
[WhiteElo "2587"]
[BlackElo "2868"]
[TimeControl "180+1"]
[EndTime "8:27:08 PDT"]
[Termination "Seochesspie won on time"]

1. e4 {[%clk 0:02:50.6]} 1... c5 {[%clk 0:02:59.5]} 2. Nf3 {[%clk 0:02:50]} 2...
Nc6 {[%clk 0:03:00.1]} 3. Bb5 {[%clk 0:02:49.3]} 3... e6 {[%clk 0:02:59.7]} 4.
O-O {[%clk 0:02:48.6]} 4... Nge7 {[%clk 0:02:59.7]} 5. Re1 {[%clk 0:02:48.2]}
5... Nd4 {[%clk 0:02:42.5]} 6. Nxd4 {[%clk 0:02:44.9]} 6... cxd4 {[%clk
0:02:42]} 7. c3 {[%clk 0:02:45.5]} 7... a6 {[%clk 0:02:40.7]} 8. Bf1 {[%clk
0:02:43.5]} 8... Nc6 {[%clk 0:02:41.1]} 9. d3 {[%clk 0:02:35.3]} 9... Bc5 {[%clk
0:02:32.1]} 10. Nd2 {[%clk 0:02:30.7]} 10... O-O {[%clk 0:02:31.4]} 11. Nb3
{[%clk 0:02:27.1]} 11... Ba7 {[%clk 0:02:31.9]} 12. cxd4 {[%clk 0:02:26.4]}
12... Nxd4 {[%clk 0:02:31.9]} 13. Be3 {[%clk 0:02:26.9]} 13... Nxb3 {[%clk
0:02:23.7]} 14. Qxb3 {[%clk 0:02:27.1]} 14... Bxe3 {[%clk 0:02:23.7]} 15. Rxe3
{[%clk 0:02:28]} 15... b5 {[%clk 0:02:21.3]} 16. a4 {[%clk 0:02:09.3]} 16... Rb8
{[%clk 0:02:17.9]} 17. axb5 {[%clk 0:02:06.6]} 17... Rxb5 {[%clk 0:02:17.6]} 18.
Qc3 {[%clk 0:02:05.7]} 18... Qb6 {[%clk 0:02:14.3]} 19. Rg3 {[%clk 0:01:45.7]}
19... f6 {[%clk 0:02:13.8]} 20. Ra2 {[%clk 0:01:26.1]} 20... Rb3 {[%clk
0:02:08.2]} 21. Qc1 {[%clk 0:01:12.1]} 21... Bb7 {[%clk 0:02:02.5]} 22. Ra3
{[%clk 0:01:12.2]} 22... Rxb2 {[%clk 0:01:49.3]} 23. Qf4 {[%clk 0:00:53.2]}
23... e5 {[%clk 0:01:26.3]} 24. Qe3 {[%clk 0:00:52.1]} 24... Qxe3 {[%clk
0:01:25.9]} 25. Rxe3 {[%clk 0:00:52.3]} 25... Rc8 {[%clk 0:01:22.5]} 26. d4
{[%clk 0:00:31.3]} 26... Rc1 {[%clk 0:01:13.8]} 27. Reb3 {[%clk 0:00:22]} 27...
Rxb3 {[%clk 0:01:07.6]} 28. Rxb3 {[%clk 0:00:22.9]} 28... Bxe4 {[%clk
0:01:08.1]} 29. dxe5 {[%clk 0:00:17.8]} 29... fxe5 {[%clk 0:01:09]} 30. f3
{[%clk 0:00:15.6]} 30... Bc6 {[%clk 0:01:08.7]} 31. Kf2 {[%clk 0:00:10.6]} 31...
a5 {[%clk 0:01:08.9]} 32. Rb8+ {[%clk 0:00:01.3]} 32... Kf7 {[%clk 0:01:08.7]}
33. Bd3 {[%clk 0:00:01.3]} 33... h6 {[%clk 0:01:07.8]} 0-1